bitfinex-derivatives/quotes_ETHF0:USTF0_20241231
["timestamp","ask_amount","ask_price","bid_price","bid_amount"]
[1735614984578,0.29997,3339.8,3339.7,4.68362379]
[1735614985280,0.4168,3339.9,3339.6,47.8733473]
[1735614985281,0.29998,3339.7,3339.6,40.8]
[1735614985575,0.29998,3339.7,3339.4,3.2078]
[1735614985779,0.4524,3339.6,3339.4,3.2078]
[1735614985982,0.75239,3339.6,3339.4,3.2078]
[1735614986179,0.4193,3339.5,3339.4,3.2078]
[1735614986384,0.30001,3339.4,3339.0,0.30004]
[1735614986780,3.9271,3339.5,3339.1,0.30003]
[1735614986985,3.6271,3339.5,3338.9,1.6294]
[1735614987186,3.6271,3339.5,3339.2,0.30002]
[1735614987984,3.6271,3339.5,3339.3,40.8]
[1735614990596,3.9271,3339.5,3339.3,40.8]
[1735614990898,3.6271,3339.5,3339.3,40.8]
[1735614991290,3.6271,3339.5,3339.3,41.10001]
[1735614991593,3.9271,3339.5,3339.3,40.8]
[1735614991795,3.6271,3339.5,3339.3,40.8]
[1735614991989,0.3,3339.4,3339.3,40.8]
[1735614992698,3.6271,3339.5,3339.3,40.8]
[1735614993190,3.6271,3339.5,3338.7,3.2078]
[1735614993497,3.6271,3339.5,3338.9,0.30004]
[1735614993498,0.30002,3339.3,3338.9,0.30004]
[1735614993795,0.30002,3339.3,3339.0,40.8]
[1735614993796,0.4304,3339.2,3339.0,40.8]
[1735614994098,0.4304,3339.2,3339.0,41.10004]
[1735614994300,0.4304,3339.2,3339.0,0.30004]
[1735614994494,0.4304,3339.2,3339.1,0.30003]
[1735614995287,0.4304,3339.2,3338.7,5.48810089]
[1735614995496,0.4304,3339.2,3338.9,0.30004]
[1735614995696,0.4304,3339.2,3338.7,3.2078]
[1735614995996,0.73042,3339.2,3338.7,3.2078]
[1735614996298,0.4304,3339.2,3338.7,3.2078]
[1735614996503,0.30005,3339.0,3338.7,3.2078]
[1735614996796,0.4187,3338.9,3338.7,3.2078]
[1735614996998,0.8442,3338.9,3338.7,3.2078]
[1735614997197,1.14425,3338.9,3338.7,3.2078]
[1735614997694,0.8442,3338.9,3338.8,41.10006]
[1735614997898,0.8442,3338.9,3338.8,40.8]
[1735614998493,0.4304,3339.2,3338.8,40.8]
[1735614998694,0.4304,3339.2,3339.1,0.30003]
[1735614999294,0.4304,3339.2,3339.1,40.8]
[1735614999799,0.4304,3339.2,3339.1,41.10003]
[1735615000001,0.4255,3339.4,3339.2,0.30002]
[1735615000305,0.4255,3339.4,3338.7,3.2078]
[1735615000504,0.30004,3339.0,3338.7,3.50786]
[1735615000697,0.30006,3338.8,3338.7,3.2078]
[1735615000902,1.32,3338.9,3338.7,3.2078]
[1735615001103,1.62005,3338.9,3338.7,3.2078]
[1735615001502,1.62005,3338.9,3338.8,40.8]
[1735615002599,4.82785,3338.9,3338.8,40.8]
[1735615004596,4.5278,3338.9,3337.7,3.2078]
[1735615004898,0.30011,3338.3,3338.0,0.30012]
[1735615005101,0.8825,3338.2,3337.7,3.2078]
[1735615005304,0.8825,3338.2,3338.1,0.30012]
[1735615005500,0.8825,3338.2,3338.0,0.30013]
[1735615006203,0.30012,3338.1,3337.8,0.30014]
[1735615007204,1.18261,3338.2,3337.8,0.30014]
[1735615007905,1.18261,3338.2,3337.9,0.30014]
[1735615008709,0.8825,3338.2,3337.6,40.8]
[1735615008908,0.8825,3338.2,3337.5,0.4558]
[1735615009201,0.30014,3337.9,3337.6,0.30016]
[1735615009406,5.48810089,3338.0,3337.2,3.2078]
[1735615009611,0.30016,3337.7,3337.3,0.30019]
[1735615009812,0.9041,3337.6,3337.2,3.2078]
[1735615010007,1.3328,3337.6,3337.2,3.2078]
[1735615010204,1.3328,3337.6,3337.4,0.30018]
[1735615010903,1.3328,3337.6,3337.2,3.508]
[1735615011108,1.63297,3337.6,3337.3,0.30019]
[1735615011811,1.63297,3337.6,3337.2,3.2078]
[1735615012113,1.63297,3337.6,3337.2,3.508]
[1735615013005,1.3328,3337.6,3337.3,0.30019]
[1735615014209,3.2078,3338.0,3337.2,3.2078]
[1735615014414,1.3127,3337.9,3337.7,0.30015]
[1735615014609,1.3127,3337.9,3337.2,3.2078]
[1735615014913,1.3127,3337.9,3337.7,0.30015]
[1735615015118,1.3127,3337.9,3337.8,40.8]
[1735615016210,1.3127,3337.9,3337.8,41.10015]
[1735615017719,1.61284,3337.9,3337.8,40.8]
[1735615018016,1.3127,3337.9,3337.8,40.8]
[1735615018611,1.61284,3337.9,3337.6,0.30016]
[1735615018915,1.61284,3337.9,3337.2,3.2078]
[1735615019116,1.61284,3337.9,3337.3,40.8]
[1735615019313,1.3127,3337.9,3337.6,0.30016]
[1735615019512,1.3127,3337.9,3337.4,0.30018]
[1735615019713,0.30017,3337.6,3337.4,0.30018]
[1735615020420,0.30018,3337.5,3337.3,0.30019]
[1735615020620,0.30019,3337.4,3337.2,3.508]
[1735615020913,1.17559,3337.3,3337.2,44.0078]
[1735615021119,1.17559,3337.3,3337.2,44.308]
[1735615021120,0.8754,3337.3,3337.2,44.308]
[1735615021521,0.8754,3337.3,3337.2,41.1002]
[1735615023115,0.8754,3337.3,3337.2,40.8]
[1735615023418,1.17559,3337.3,3337.2,40.8]
[1735615026816,1.17559,3337.3,3337.0,0.30021]
[1735615027217,0.8754,3337.3,3336.6,3.2078]
[1735615027416,0.8754,3337.3,3336.7,40.8]
[1735615027417,0.30022,3337.0,3336.7,40.8]
[1735615027925,0.30022,3337.0,3336.8,0.30024]
[1735615028118,0.4335,3336.9,3336.6,3.2078]
[1735615028320,0.30025,3336.7,3336.6,3.2078]
[1735615028521,0.30025,3336.7,3336.2,3.50809]
[1735615028718,0.30027,3336.5,3336.3,40.8]
[1735615028919,0.30027,3336.5,3336.3,41.10028]
[1735615029119,0.4293,3336.4,3336.3,40.8]
[1735615029323,0.72957,3336.4,3336.3,40.8]
[1735615029825,0.4293,3336.4,3336.3,40.8]
[1735615030020,0.8469,3336.6,3336.3,0.30028]
[1735615030223,2.70960089,3337.1,3336.6,0.30025]
[1735615030414,1.17103,3337.0,3336.7,0.30024]
[1735615030820,0.8708,3337.0,3336.3,40.8]
[1735615031019,0.30025,3336.7,3336.4,0.30027]
[1735615031426,0.30025,3336.7,3336.3,40.8]
[1735615031427,0.4293,3336.6,3336.3,40.8]
[1735615031726,0.72956,3336.6,3336.3,41.10028]
[1735615032126,0.4293,3336.6,3336.5,0.30026]
[1735615033422,0.4293,3336.6,3336.3,40.8]
[1735615033626,0.30027,3336.4,3336.3,40.8]
[1735615033928,0.4293,3336.6,3336.3,40.8]
[1735615033929,0.30027,3336.5,3336.3,40.8]
[1735615034116,0.8657,3336.4,3336.3,40.8]
[1735615034315,0.8657,3336.4,3336.1,0.3003]
[1735615034823,0.8657,3336.4,3336.2,41.10029]
[1735615035022,0.8657,3336.4,3336.2,40.8]
[1735615035023,0.30028,3336.3,3336.2,40.8]
[1735615035219,0.30028,3336.3,3335.9,3.50811]
[1735615035623,0.8657,3336.4,3336.0,0.3003]
[1735615035923,1.16598,3336.4,3336.0,41.1003]
[1735615036118,1.16598,3336.4,3336.1,0.3003]
[1735615036722,0.8657,3336.4,3336.1,0.3003]
[1735615037233,3.6371,3336.6,3336.0,40.8]
[1735615037624,3.6371,3336.6,3336.5,0.30026]
[1735615039633,3.2078,3336.6,3336.5,0.30026]
[1735615039829,0.4594,3336.9,3336.7,0.30025]
[1735615040131,0.4594,3336.9,3336.6,0.30025]
[1735615040322,0.4594,3336.9,3336.0,43.15780089]
[1735615040528,3.6261,3337.0,3336.4,3.2078]
[1735615040728,3.6261,3337.0,3336.8,0.30023]
[1735615040933,0.9171,3336.9,3336.8,0.30023]
[1735615041322,0.4594,3336.9,3336.8,0.30023]
[1735615041537,3.2078,3337.0,3336.9,0.30023]
[1735615041927,3.2078,3337.6,3337.5,0.30017]
[1735615042627,3.2078,3337.6,3337.2,3.48430089]
[1735615042628,3.2078,3338.0,3337.9,0.30014]
[1735615043624,0.30013,3338.1,3337.3,0.4198]
[1735615043821,2.28030089,3338.0,3337.9,0.30014]
[1735615044024,1.15621,3338.2,3337.9,0.30014]
[1735615044327,0.30012,3338.1,3337.7,0.30016]
[1735615044522,0.30014,3337.9,3337.4,0.30018]
[1735615044723,0.30014,3337.9,3337.6,0.30016]
[1735615045034,2.58043089,3338.0,3337.7,0.30015]
[1735615046132,2.28030089,3338.0,3337.3,0.4198]
[1735615046334,2.28030089,3338.0,3337.6,0.30016]
[1735615046633,2.58043089,3338.0,3337.6,0.30016]
[1735615047222,2.58043089,3338.0,3337.7,0.30016]
[1735615048030,0.73694,3337.9,3337.6,0.30016]
[1735615048230,0.73694,3337.9,3337.2,3.2078]
[1735615048231,0.30019,3337.4,3337.2,3.2078]
[1735615048431,1.159,3337.3,3336.9,0.30022]
[1735615048624,3.6281,3337.2,3336.7,4.68362379]
[1735615048830,0.30021,3337.1,3336.8,0.30024]
[1735615049231,0.30021,3337.1,3336.7,4.68362379]
[1735615049232,0.30024,3336.8,3336.7,4.68362379]
[1735615049432,5.78834089,3336.8,3336.7,4.68362379]
[1735615049833,3.2078,3336.8,3336.7,4.68362379]
[1735615050337,0.30025,3336.7,3336.3,0.30028]
[1735615050537,0.71805,3336.7,3336.0,3.4479588]
[1735615050740,6.07836543,3337.1,3336.8,0.30023]
[1735615050931,5.77814543,3337.1,3336.8,0.30023]
[1735615051232,3.49784454,3337.1,3337.0,0.30022]
[1735615051629,3.49784454,3337.4,3337.3,0.30019]
[1735615051825,3.49784454,3337.4,3337.3,41.10019]
[1735615052631,3.2078,3337.6,3337.3,41.10019]
[1735615052831,3.50797,3337.6,3337.3,41.10019]
[1735615053334,3.2078,3337.6,3337.3,41.10019]
[1735615054235,3.2078,3337.6,3337.5,0.30017]
[1735615056037,3.2078,3337.6,3337.4,0.30018]
[1735615056335,3.2078,3337.6,3337.5,0.30017]
[1735615057632,3.2078,3337.6,3337.4,0.30018]
[1735615057834,3.2078,3337.6,3337.5,0.30017]
[1735615060242,3.2078,3337.6,3337.4,0.30018]
[1735615060437,3.2078,3337.6,3337.3,40.8]
[1735615060635,0.3002,3337.3,3336.9,4.98384379]
[1735615060837,0.30021,3337.1,3336.9,4.68362379]
[1735615061135,1.63731,3337.2,3336.9,4.68362379]
[1735615061332,1.3371,3337.2,3337.0,0.30022]
[1735615061635,0.30022,3337.1,3336.8,3.2078]
[1735615062141,0.30022,3337.1,3336.8,3.50804]
[1735615062441,1.3371,3337.2,3337.1,0.30021]
[1735615065451,0.4556,3337.2,3337.1,0.30021]
[1735615066848,6.70564454,3337.6,3337.5,0.30017]
[1735615067044,3.2078,3337.6,3337.5,0.30017]
[1735615067550,3.49784454,3337.7,3337.6,0.30017]
[1735615067848,3.49784454,3337.7,3337.6,41.10017]
[1735615068542,0.30013,3338.1,3337.7,0.30015]
[1735615068742,0.30014,3337.9,3337.6,41.10016]
[1735615069951,4.81474454,3338.2,3337.6,40.8]
[1735615070142,0.30013,3338.0,3337.7,0.30015]
[1735615073446,8.02254454,3338.2,3337.6,40.8]
[1735615073846,0.30012,3338.1,3337.6,40.8]
[1735615074053,0.30012,3338.1,3337.8,0.30014]
[1735615075147,8.32266454,3338.2,3338.0,0.30013]
[1735615075347,0.30013,3338.1,3337.7,0.30016]
[1735615075547,0.30013,3338.1,3337.8,0.30014]
[1735615075747,0.30013,3338.0,3337.8,0.30014]
[1735615076751,8.32266454,3338.2,3337.7,0.30016]
[1735615076943,0.30012,3338.1,3337.9,0.30013]
[1735615077353,0.30012,3338.1,3337.8,0.30014]
[1735615079155,0.30012,3338.1,3337.6,40.8]
[1735615079156,4.5247,3338.2,3337.6,40.8]
[1735615079344,0.30012,3338.1,3337.8,0.30014]
[1735615079551,4.5247,3338.2,3337.6,40.8]
[1735615079850,0.30012,3338.1,3337.9,0.30013]
[1735615080055,0.30013,3338.0,3337.7,0.30015]
[1735615081051,0.30013,3338.0,3337.6,40.8]
[1735615081252,0.30013,3338.1,3337.7,0.30016]
[1735615081452,0.30013,3338.0,3337.6,40.8]
[1735615081653,8.32266454,3338.2,3337.9,0.30013]
[1735615081855,8.02254454,3338.2,3337.9,0.30013]
[1735615082055,0.30012,3338.1,3337.9,0.30013]
[1735615082474,8.02254454,3338.2,3337.6,40.8]
[1735615082668,8.02254454,3338.2,3338.1,0.30012]
[1735615082972,3.6652,3338.2,3338.1,0.30012]
[1735615085365,3.6652,3338.2,3338.0,0.30013]
[1735615085673,3.6652,3338.2,3337.7,7.89142379]
[1735615085870,0.8906,3338.5,3338.1,3.2078]
[1735615086176,0.8906,3338.5,3338.4,0.30009]
[1735615086874,3.49784454,3338.6,3338.5,0.30008]
[1735615087073,3.49784454,3338.6,3338.5,3.50788]
[1735615087273,4.66649641,3338.8,3338.7,0.30007]
[1735615087274,3.49784454,3338.8,3338.7,0.30007]
[1735615087572,3.49784454,3338.8,3338.5,40.8]
[1735615087763,1.2987,3338.7,3338.6,0.30008]
[1735615087965,3.49784454,3338.8,3338.7,0.30007]
[1735615088371,3.49784454,3338.8,3338.6,0.30007]
[1735615088668,3.49784454,3339.0,3338.7,0.30007]
[1735615089276,3.79788454,3339.0,3338.7,0.30007]
[1735615089777,3.79788454,3339.0,3338.5,40.8]
[1735615090078,1.61514,3339.1,3338.8,0.30006]
[1735615090268,1.61514,3339.1,3338.5,40.8]
[1735615090269,1.3151,3339.1,3338.5,40.8]
[1735615090469,1.3151,3339.1,3339.0,0.30004]
[1735615091776,3.2078,3339.2,3338.7,1.207]
[1735615091970,3.2078,3339.2,3339.1,0.30003]
[1735615093070,3.49784454,3339.6,3339.5,0.3]
[1735615094070,7.87429641,3339.8,3339.7,0.29998]
[1735615094071,3.2078,3339.8,3339.7,0.29998]
[1735615094471,3.2078,3339.8,3339.7,41.09998]
[1735615100775,3.2078,3339.8,3339.7,0.29998]
[1735615100970,3.2078,3339.8,3339.2,2.28030089]
[1735615100971,1.3253,3339.9,3339.2,2.28030089]
[1735615101280,1.3253,3339.9,3339.8,0.29997]
[1735615101674,3.2078,3340.2,3339.5,3.48430089]
[1735615101875,3.2078,3340.2,3340.1,0.29994]
[1735615102684,0.8551,3340.4,3340.3,0.29992]
[1735615104083,0.8551,3340.4,3339.8,5.48810089]
[1735615104284,0.8551,3340.4,3339.8,3.2078]
[1735615104585,0.29994,3340.1,3339.9,0.29995]
[1735615104987,0.4206,3340.0,3339.8,3.50776]
[1735615106385,0.4206,3340.0,3339.3,44.0078]
[1735615106583,0.29996,3339.9,3339.6,0.29998]
[1735615106785,0.8535,3339.8,3339.6,0.29998]
[1735615107284,0.8535,3339.8,3339.7,0.29998]
[1735615108282,0.4206,3340.0,3339.9,0.29996]
[1735615108682,4.0833,3340.7,3339.8,2.28030089]
[1735615108878,0.723,3340.6,3340.3,0.29992]
[1735615109080,0.4231,3340.6,3339.8,2.28030089]
[1735615109287,0.4231,3340.6,3340.5,0.29991]
[1735615111486,1.304,3341.3,3340.5,44.0078]
[1735615111694,1.304,3341.3,3341.2,0.29984]
[1735615113790,0.857,3341.3,3341.2,0.29984]
[1735615120194,0.4251,3341.3,3341.2,0.29984]
[1735615121296,0.4251,3341.3,3340.9,3.2078]
[1735615121698,2.28030089,3341.0,3340.5,3.5077]
[1735615121897,0.2999,3340.6,3340.5,3.2078]
[1735615122195,0.2999,3340.6,3340.3,0.29992]
[1735615122401,0.4326,3340.5,3340.2,40.8]
[1735615122797,0.4326,3340.5,3340.4,0.29991]
[1735615123299,0.4326,3340.5,3340.3,0.29992]
[1735615123496,0.4326,3340.5,3340.2,40.8]
[1735615123700,0.4326,3340.5,3340.4,0.29991]
[1735615125698,0.4326,3340.5,3340.2,40.8]
[1735615125897,0.29994,3340.2,3340.0,3.2078]
[1735615126099,1.19304,3340.1,3340.0,3.2078]
[1735615126304,0.8931,3340.1,3339.6,3.2078]
[1735615126598,0.29996,3339.9,3339.5,0.29999]
[1735615127107,1.19305,3340.1,3339.7,0.29997]
[1735615127298,0.29995,3340.0,3339.6,0.29998]
[1735615128504,0.29995,3340.0,3339.5,0.29999]
[1735615128802,0.29995,3340.0,3339.6,0.29998]
[1735615129705,0.4547,3339.9,3339.6,0.29998]
[1735615129903,0.4547,3339.9,3339.3,40.8]
[1735615130103,0.4547,3339.9,3339.7,0.29998]
[1735615131702,0.4525,3340.1,3340.0,0.29995]
[1735615132301,0.4525,3340.1,3340.0,41.09995]
[1735615132604,3.2078,3340.2,3340.1,0.29994]
[1735615133003,3.2078,3340.2,3340.0,41.09995]
[1735615133205,3.2078,3340.2,3340.1,0.29994]
[1735615136001,0.454,3340.5,3340.0,40.8]
[1735615136304,0.454,3340.5,3340.2,0.29993]
[1735615136695,0.454,3340.5,3340.0,40.8]
[1735615136906,0.454,3340.5,3340.3,0.29992]
[1735615137106,0.454,3340.5,3340.4,0.29991]
[1735615138306,0.454,3340.5,3340.0,40.8]
[1735615138609,0.454,3340.5,3340.2,0.29993]
[1735615138804,0.454,3340.5,3340.0,40.8]
[1735615139008,0.454,3340.5,3340.3,0.29992]
[1735615140109,0.454,3340.5,3340.4,0.29991]
[1735615141311,3.2078,3340.6,3340.5,0.29991]
[1735615142309,4.21261454,3340.9,3340.5,0.29991]
[1735615142605,0.29988,3340.8,3340.0,40.8]
[1735615142810,0.29989,3340.7,3340.4,0.29991]
[1735615143109,0.4149,3340.9,3340.4,0.29991]
[1735615143309,0.29988,3340.8,3340.4,0.29991]
[1735615143508,3.2078,3340.7,3340.0,40.8]
[1735615143711,0.29991,3340.5,3340.1,0.29993]
[1735615143909,0.447,3340.4,3340.1,0.29993]
[1735615144112,0.4323,3340.3,3340.1,0.29993]
[1735615144807,3.6401,3340.3,3339.4,4.68362379]
[1735615145009,0.29998,3339.8,3339.4,4.68362379]
[1735615145205,0.4202,3339.7,3339.6,0.29999]
[1735615145504,3.2078,3339.9,3339.4,45.48362379]
[1735615145707,3.2078,3339.9,3339.7,0.29997]
[1735615145906,0.4202,3340.2,3340.1,0.29994]
[1735615146113,0.4202,3340.2,3339.5,2.28030089]
[1735615146313,0.4202,3340.2,3340.0,0.29995]
[1735615146614,0.4202,3340.2,3339.5,2.28030089]
[1735615146809,0.4202,3340.2,3340.1,0.29994]
[1735615147007,3.49784454,3340.3,3340.2,0.29993]
[1735615147312,0.447,3340.4,3340.2,0.29993]
[1735615147507,3.6548,3340.4,3340.0,0.29994]
[1735615147707,0.4191,3340.3,3339.9,0.4348]
[1735615147911,0.4191,3340.3,3340.1,0.29994]
[1735615148106,0.71903,3340.3,3340.0,0.29995]
[1735615148513,0.29995,3340.0,3339.8,1.206]
[1735615148717,0.4206,3339.9,3339.3,8.30922379]
[1735615148916,0.4302,3339.8,3339.6,0.29999]
[1735615149716,0.4191,3339.7,3339.6,0.29999]
[1735615150018,0.4191,3339.7,3339.5,0.29999]
[1735615150220,0.71908,3339.7,3339.4,41.1]
[1735615150709,0.71908,3339.7,3339.4,40.8]
[1735615150710,0.4191,3339.7,3339.4,40.8]
[1735615150913,0.4191,3339.7,3339.5,0.29999]
[1735615151112,0.4191,3339.7,3339.6,0.29999]
[1735615152106,0.4191,3339.7,3339.5,0.29999]
[1735615152618,0.4302,3339.8,3339.7,0.29998]
[1735615153514,3.2078,3340.0,3339.9,0.29996]
[1735615154110,0.4196,3340.1,3340.0,0.29995]
[1735615155021,0.71954,3340.1,3339.8,0.74946]
[1735615155524,0.4196,3340.1,3340.0,0.29995]
[1735615155714,0.4196,3340.1,3339.8,0.4495]
[1735615156321,0.4196,3340.1,3340.0,0.29995]
[1735615156524,0.4196,3340.1,3339.8,0.4495]
[1735615156818,3.50776,3339.9,3339.5,0.29998]
[1735615157023,3.50776,3339.9,3339.6,0.29998]
[1735615158127,3.2078,3339.9,3339.4,40.8]
[1735615158320,0.4196,3340.1,3339.8,0.29996]
[1735615158321,0.71954,3340.1,3339.8,0.29996]
[1735615159421,0.71954,3340.1,3339.9,0.29995]
[1735615160022,0.4196,3340.1,3339.4,43.08030089]
[1735615160223,0.4196,3340.1,3339.7,0.29997]
[1735615160426,0.29995,3340.0,3339.7,0.29997]
[1735615161219,3.6274,3340.1,3339.4,43.08030089]
[1735615161426,3.92734,3340.1,3339.9,0.29995]
[1735615161825,3.6274,3340.1,3339.4,43.08030089]
[1735615162026,0.29995,3340.0,3339.4,43.08030089]
[1735615162335,0.29995,3340.0,3339.8,0.29996]
[1735615162534,0.71954,3340.1,3339.9,0.29995]
[1735615162721,0.4196,3340.1,3339.4,43.08030089]
[1735615162927,3.6274,3340.1,3339.4,40.8]
[1735615163227,3.6274,3340.1,3339.2,3.6378]
[1735615163428,8.6274,3340.1,3339.2,3.6378]
[1735615163627,8.6274,3340.1,3339.5,0.29999]
[1735615163832,3.6274,3340.1,3339.2,44.4378]
[1735615164033,0.29995,3340.0,3339.8,0.29996]
[1735615164531,3.79779454,3340.0,3339.8,0.29996]
[1735615165232,3.49784454,3340.0,3339.2,44.0078]
[1735615165430,0.30001,3339.3,3339.2,40.8]
[1735615165632,0.30002,3339.2,3339.1,4.68362379]
[1735615165832,1.64222,3339.2,3339.1,4.68362379]
[1735615167027,1.3422,3339.2,3339.1,0.30003]
[1735615167429,0.3,3339.4,3339.1,0.30003]
[1735615167635,1.1735,3339.4,3339.1,0.30003]
[1735615169032,0.8735,3339.4,3339.0,40.8]
[1735615169336,0.8735,3339.4,3339.2,0.30002]
[1735615169632,0.8735,3339.4,3339.3,0.30001]
[1735615169835,6.70564454,3339.6,3339.5,0.29999]
[1735615170231,3.49784454,3339.6,3339.5,0.29999]
[1735615170728,4.36844454,3339.7,3339.6,0.29998]
[1735615171732,0.8706,3339.7,3339.6,0.29998]
[1735615172228,0.29998,3339.6,3339.3,0.3]
[1735615172434,0.29998,3339.6,3339.1,0.30002]
[1735615172435,0.3,3339.4,3339.1,0.30002]
[1735615172737,0.3,3339.4,3339.2,0.30001]
[1735615173035,0.4556,3339.3,3339.2,0.30001]
[1735615173938,0.4556,3339.3,3339.0,40.8]
[1735615174235,0.4556,3339.3,3339.1,0.30002]
[1735615174434,0.75561,3339.3,3339.0,41.10003]
[1735615174833,0.30003,3339.1,3339.0,40.8]
[1735615176033,0.4556,3339.3,3339.0,40.8]
[1735615176335,3.79786454,3339.2,3339.0,40.8]
[1735615176533,0.8929,3339.1,3339.0,40.8]
[1735615176735,0.8929,3339.1,3339.0,41.10003]
[1735615177438,0.8929,3339.1,3339.0,40.8]
[1735615178137,1.19293,3339.1,3339.0,40.8]
[1735615178533,0.8929,3339.1,3339.0,40.8]
[1735615180544,3.95344454,3339.3,3339.0,40.8]
[1735615180735,3.95344454,3339.3,3339.2,0.30002]
[1735615181039,0.4556,3339.3,3339.2,0.30002]
[1735615181334,0.4581,3339.4,3339.3,0.30001]
[1735615182642,0.4581,3339.4,3339.1,0.4585]
[1735615182841,0.7581,3339.4,3339.2,0.30002]
[1735615183241,0.4581,3339.4,3339.3,0.30001]
[1735615184939,0.4581,3339.4,3339.0,40.8]
[1735615185246,0.7581,3339.4,3339.2,0.30001]
[1735615189354,0.4581,3339.4,3339.0,40.8]
[1735615189555,0.30001,3339.3,3339.1,0.30002]
[1735615193341,0.30001,3339.3,3339.0,40.8]
[1735615193547,0.30001,3339.3,3339.2,0.30002]
[1735615194255,3.95594454,3339.4,3339.1,0.30002]
[1735615194450,0.30002,3339.2,3339.0,41.10003]
[1735615195250,3.95594454,3339.4,3339.0,40.8]
[1735615195455,0.30001,3339.3,3339.1,0.30003]
[1735615196557,3.95594454,3339.4,3339.0,40.8]
[1735615196850,3.95594454,3339.4,3338.8,0.30005]
[1735615196851,0.30003,3339.0,3338.8,0.30005]
[1735615197051,0.30004,3338.9,3338.8,0.30005]
[1735615197252,3.95594454,3339.4,3338.8,41.10005]
[1735615197556,0.30004,3339.0,3338.8,41.10005]
[1735615198050,0.74334,3338.9,3338.8,40.8]
[1735615198449,0.74334,3338.9,3338.7,4.68362379]
[1735615198450,0.30005,3338.8,3338.7,4.68362379]
[1735615198650,0.75105,3338.8,3338.7,4.68362379]
[1735615198845,0.75105,3338.8,3338.7,45.48362379]
[1735615199045,0.75105,3338.8,3338.4,4.68362379]
[1735615199046,0.30008,3338.5,3338.4,4.68362379]
[1735615199256,3.50788,3338.5,3338.4,4.68362379]
[1735615199557,3.50788,3338.5,3338.4,45.48362379]
[1735615200354,7.00572454,3338.5,3338.4,40.8]
[1735615206060,6.70564454,3338.5,3338.4,41.10009]
[1735615206852,3.49784454,3338.5,3338.4,41.10009]
[1735615207159,4.24889454,3338.8,3338.5,0.30007]
[1735615207363,3.94884454,3338.8,3338.6,0.30007]
[1735615207854,4.24890454,3338.8,3338.5,0.30007]
[1735615208059,0.75106,3338.8,3338.5,0.30007]
[1735615208460,0.451,3338.8,3338.4,40.8]
[1735615208663,0.30006,3338.7,3338.4,41.10008]
[1735615209060,0.75106,3338.8,3338.5,0.30008]
[1735615209364,4.24890454,3338.8,3338.5,0.30008]
[1735615210857,0.75106,3338.8,3338.5,0.30008]
[1735615211859,3.94884454,3338.8,3338.7,0.30006]
[1735615212053,3.49784454,3338.8,3338.7,2.58036089]
[1735615212460,2.03784454,3338.8,3338.7,2.58036089]
[1735615212860,7.73e-06,3338.8,3338.7,7.58036089]
[1735615213169,4.66649641,3339.7,3338.8,1.033]
[1735615213360,4.66649641,3339.7,3339.3,2.28030089]
[1735615213561,0.4183,3339.6,3339.3,3.47630089]
[1735615213758,0.4183,3339.6,3339.5,0.29999]
[1735615214363,0.4183,3339.6,3339.5,40.8]
[1735615214571,0.4183,3339.6,3339.5,41.09999]
[1735615214762,0.8553,3339.6,3339.5,41.09999]
[1735615215861,0.8553,3339.6,3339.4,0.29999]
[1735615216272,1.286,3339.6,3339.4,0.29999]
[1735615216567,1.286,3339.6,3339.4,0.3]
[1735615216965,1.286,3339.6,3339.5,0.29999]
[1735615219961,0.4183,3339.6,3339.5,0.29999]
[1735615223768,3.2078,3339.9,3339.8,0.29996]
[1735615225578,0.8777,3340.0,3339.6,2.28030089]
[1735615225766,0.8777,3340.0,3339.9,0.29995]
[1735615229183,0.445,3340.1,3339.9,2.28030089]
[1735615229482,0.8868,3340.6,3340.5,0.2999]
[1735615229670,1.3029,3340.6,3340.5,0.2999]
[1735615229871,1.3029,3340.6,3340.5,41.0999]
[1735615231783,3.2078,3340.8,3340.7,0.29988]
[1735615232276,4.66649641,3341.2,3341.1,0.29985]
[1735615233181,6.73541809,3341.4,3340.9,3.47530089]
[1735615233182,0.872,3341.4,3340.9,3.47530089]
[1735615233382,0.872,3341.4,3341.3,0.29983]
[1735615233580,0.872,3341.4,3341.3,41.09983]
[1735615236689,0.4161,3341.4,3341.3,41.09983]
[1735615236991,0.4447,3341.9,3341.8,0.29978]
[1735615237294,0.8617,3341.9,3341.8,0.29978]
[1735615237889,3.2078,3342.0,3341.9,0.29977]
[1735615238882,4.4909,3342.6,3342.2,0.29974]
[1735615239083,4.4909,3342.6,3342.3,0.29974]
[1735615239691,4.4909,3342.6,3342.4,40.8]
[1735615241398,4.4909,3342.6,3342.4,41.09972]
[1735615241795,1.2831,3342.6,3342.4,41.09972]
[1735615242499,1.2831,3342.6,3342.4,0.29972]
[1735615243193,1.2831,3342.6,3342.2,40.8]
[1735615243596,1.2831,3342.6,3342.4,0.29972]
[1735615243799,4.4909,3342.6,3342.4,0.29972]
[1735615244795,1.2831,3342.6,3342.4,0.29972]
[1735615244997,1.2831,3342.6,3342.2,40.8]
[1735615245197,1.2831,3342.6,3342.3,0.29974]
[1735615245598,1.2831,3342.6,3342.4,0.29972]
[1735615246098,1.2831,3342.6,3342.3,0.29974]
[1735615247097,1.2831,3342.6,3341.6,4.4028]
[1735615247098,4.4909,3342.6,3341.6,4.4028]
[1735615247398,3.2078,3342.2,3341.6,1.195]
[1735615247600,0.4522,3342.1,3341.9,0.29977]